fUST/lending_fUST_20250430
["ID","MTS","AMOUNT","RATE_DAILY","PERIOD"]
[359364010,1745950277950,-1053.59,0.00033251,2]
[359364011,1745950277959,-1239.71,0.00033251,2]
[359364012,1745950277969,-2205.18,0.00033251,2]
[359364013,1745950277979,-527.41,0.00033251,2]
[359364014,1745950277988,-2846.56,0.00033251,2]
[359364015,1745950277997,-2184.92,0.00033251,2]
[359364016,1745950278007,-817.29,0.00033251,2]
[359364017,1745950278017,-1394.02,0.00033251,2]
[359364018,1745950278026,-1320.77,0.00033251,2]
[359364019,1745950278035,-1675.48,0.00033251,2]
[359364020,1745950278047,-400.0,0.00033251,2]
[359364021,1745950278057,-1080.97,0.00033258,2]
[359364022,1745950278066,-402.94,0.00033258,2]
[359364023,1745950278076,-432.99,0.00033258,2]
[359364024,1745950278086,-418.93,0.00033258,2]
[359364025,1745950278096,-400.0,0.00033258,2]
[359364026,1745950278106,-400.0,0.00033258,2]
[359364027,1745950278116,-449.6,0.00033258,2]
[359364028,1745950278126,-400.0,0.00033258,2]
[359364029,1745950278135,-729.14,0.00033258,2]
[359364030,1745950278145,-400.0,0.00033258,2]
[359364031,1745950278155,-448.35,0.00033258,2]
[359364032,1745950278165,-444.68552531,0.00033258,2]
[359364033,1745950278175,-400.0,0.00033258,2]
[359364034,1745950278184,-413.51,0.00033258,2]
[359364035,1745950278194,-1316.67,0.00033258,2]
[359364036,1745950278205,-658.51,0.00033258,2]
[359364037,1745950278215,-449.83,0.00033258,2]
[359364038,1745950278226,-413.91,0.00033283,2]
[359364039,1745950278236,-400.0,0.00033491,2]
[359364040,1745950278246,-2129.67,0.00033491,2]
[359364041,1745950278255,-841.35,0.00033491,2]
[359364042,1745950278265,-597.93,0.00033491,2]
[359364043,1745950278274,-4477.77,0.00033491,2]
[359364044,1745950278285,-4481.88,0.00033491,2]
[359364045,1745950278294,-1016.27,0.00033491,2]
[359364046,1745950278304,-1557.18,0.00033491,2]
[359364047,1745950278314,-6821.26,0.00033491,2]
[359364048,1745950278323,-5218.28,0.00033491,2]
[359364049,1745950278333,-2301.75,0.00033491,2]
[359364050,1745950278345,-499.69,0.00033491,2]
[359364051,1745950278355,-2340.36,0.00033491,2]
[359364052,1745950278364,-4344.48,0.00033491,2]
[359364053,1745950278375,-735.44,0.00033511,2]
[359364054,1745950278384,-2027.24,0.00033511,2]
[359364055,1745950278394,-400.0,0.00033511,2]
[359364056,1745950278403,-448.72,0.00033511,2]
[359364057,1745950278412,-796.85,0.00033511,2]
[359364058,1745950278422,-753.17,0.00033511,2]
[359364059,1745950278431,-2644.55,0.00033511,2]
[359364060,1745950278441,-977.43,0.00033511,2]
[359364061,1745950278450,-400.0,0.00033511,2]
[359364062,1745950278460,-2032.37,0.00033511,2]
[359364063,1745950278469,-606.65,0.00033511,2]
[359364064,1745950278480,-2282.85,0.00033511,2]
[359364065,1745950278493,-2537.29,0.00033511,2]
[359364066,1745950278502,-502.89,0.00033511,2]
[359364067,1745950278512,-400.0,0.00033511,2]
[359364068,1745950278522,-400.0,0.00033511,2]
[359364069,1745950278533,-400.0,0.00033511,2]
[359364070,1745950278543,-665.54,0.00033511,2]
[359364071,1745950278553,-2388.42,0.00033511,2]
[359364072,1745950278563,-1859.74,0.00033511,2]
[359364073,1745950278573,-2718.43,0.00033511,2]
[359364074,1745950278583,-502.81,0.00033511,2]
[359364075,1745950278595,-650.0,0.00033512,5]
[359364076,1745950278745,-400.0,0.00033523,2]
[359364077,1745950278755,-859.28,0.00033523,2]
[359364078,1745950278764,-510.13,0.00033523,2]
[359364079,1745950278774,-515.96,0.00033523,2]
[359364080,1745950278783,-783.69,0.00033523,2]
[359364081,1745950278792,-400.0,0.00033523,2]
[359364082,1745950278803,-836.06,0.00033523,2]
[359364083,1745950278813,-890.21,0.00033523,2]
[359364084,1745950278822,-448.01,0.00033523,2]
[359364085,1745950278832,-469.6,0.00033523,2]
[359364086,1745950278843,-855.39,0.00033523,2]
[359364087,1745950278853,-537.48,0.00033523,2]
[359364088,1745950278864,-423.88,0.00033523,2]
[359364089,1745950278874,-500.96,0.00033523,2]
[359364090,1745950278883,-510.86,0.00033523,2]
[359364091,1745950278893,-1044.99,0.00033523,2]
[359364092,1745950278903,-400.0,0.00033523,2]
[359364093,1745950278913,-863.9,0.00033523,2]
[359364094,1745950278923,-936.0,0.00033523,2]
[359364095,1745950278933,-489.11,0.00033523,2]
[359364096,1745950278942,-928.32,0.00033523,2]
[359364097,1745950278952,-426.15,0.00033523,2]
[359364098,1745950278962,-1739.64,0.00033523,2]
[359364099,1745950278972,-1599.63,0.00033523,2]
[359364100,1745950278982,-450.72,0.00033523,2]
[359364101,1745950278991,-669.77,0.00033523,2]
[359364102,1745950279002,-400.0,0.00033523,2]
[359364103,1745950279013,-400.0,0.00033523,2]
[359364104,1745950279023,-400.0,0.00033523,2]
[359364105,1745950279033,-400.0,0.00033523,2]
[359364106,1745950279043,-1012.25,0.00033523,2]
[359364107,1745950279053,-1114.07,0.00033523,2]
[359364108,1745950279064,-565.43,0.00033523,2]
[359364109,1745950279074,-792.61,0.00033523,2]
[359364110,1745950279084,-400.0,0.00033523,2]
[359364111,1745950279094,-618.32,0.00033523,2]
[359364112,1745950279104,-671.04,0.00033523,2]
[359364113,1745950279114,-400.0,0.00033523,2]
[359364114,1745950279126,-6629.8,0.00033523,2]
[359364115,1745950279136,-400.0,0.00033523,2]
[359364116,1745950279145,-2228.71,0.00033523,2]
[359364117,1745950279155,-839.34,0.00033523,2]
[359364118,1745950279165,-540.99,0.00033523,2]
[359364119,1745950279175,-624.9,0.00033523,2]
[359364120,1745950279184,-1259.11,0.00033523,2]
[359364121,1745950279194,-1654.28,0.00033523,2]
[359364122,1745950279203,-512.53,0.00033523,2]
[359364123,1745950279213,-2401.37,0.00033523,2]
[359364124,1745950279224,-400.0,0.00033523,2]
[359364125,1745950279235,-3513.44,0.00033523,2]
[359364126,1745950279245,-745.97,0.00033523,2]
[359364127,1745950279255,-1636.76,0.00033523,2]
[359364128,1745950279266,-401.59,0.00033523,2]
[359364129,1745950279275,-4763.75,0.00033523,2]
[359364130,1745950279285,-400.0,0.00033523,2]
[359364131,1745950279296,-811.55,0.00033523,2]
[359364132,1745950279306,-3915.94,0.00033523,2]
[359364133,1745950279316,-2053.69,0.00033523,2]
[359364134,1745950279325,-1013.28,0.00033523,2]
[359364135,1745950279337,-151.0,0.00033523,14]
[359364136,1745950279347,-400.0,0.00033523,2]
[359364137,1745950279356,-2439.55,0.00033523,2]
[359364138,1745950279365,-243.27754743,0.00033523,2]
[359364139,1745950279375,-151.0,0.00033523,14]
[359364140,1745950279384,-499.68,0.00033523,2]
[359364141,1745950279394,-151.0,0.00033523,14]
[359364142,1745950279403,-400.0,0.00033523,2]
[359364143,1745950279412,-1059.59,0.00033523,2]
[359364144,1745950279422,-400.0,0.00033523,2]
[359364145,1745950279431,-9541.72,0.00033523,2]
[359364146,1745950279440,-151.0,0.00033523,14]
[359364147,1745950279450,-1166.59,0.00033523,2]
[359364148,1745950279459,-400.0,0.00033523,2]
[359364149,1745950279470,-400.0,0.00033523,2]
[359364150,1745950279478,-2079.05,0.00033523,2]
[359364151,1745950279492,-2602.27,0.00033523,2]
[359364152,1745950279502,-707.59,0.00033523,2]
[359364153,1745950279511,-400.0,0.00033523,2]
[359364154,1745950279520,-584.7,0.00033523,2]
[359364155,1745950279530,-785.1,0.00033523,2]
[359364156,1745950279541,-1689.93,0.00033523,2]
[359364157,1745950279551,-1489.78,0.00033523,2]
[359364158,1745950279560,-1238.14,0.00033523,2]
[359364159,1745950279571,-618.36,0.00033523,2]
[359364160,1745950279580,-400.0,0.00033523,2]
[359364161,1745950279591,-640.33,0.00033523,2]
[359364162,1745950279600,-1310.58,0.00033523,2]
[359364163,1745950279610,-400.0,0.00033523,2]
[359364164,1745950279620,-400.0,0.00033523,2]
[359364165,1745950279629,-586.04,0.00033523,2]
[359364166,1745950279639,-3604.88,0.00033524,2]
[359364167,1745950279648,-514.93,0.00033525,2]
[359364168,1745950279657,-627.52,0.00033525,2]
[359364169,1745950279667,-2104.16,0.00033525,2]
[359364170,1745950279676,-1287.35,0.00033525,2]
[359364171,1745950279685,-585.19,0.00033525,2]
[359364172,1745950279695,-590.39,0.00033525,2]
[359364173,1745950279704,-4064.61,0.00033525,2]
[359364174,1745950279713,-1120.73,0.00033525,2]
[359364175,1745950279722,-1942.02,0.00033525,2]
[359364176,1745950279731,-610.09,0.00033525,2]
[359364177,1745950279740,-480.18,0.00033525,2]
[359364178,1745950279750,-1089.09,0.00033525,2]
[359364179,1745950279759,-526.98,0.00033525,2]
[359364180,1745950279768,-1028.38,0.00033525,2]
[359364181,1745950279777,-400.0,0.00033525,2]
[359364182,1745950279787,-1520.91,0.00033525,2]
[359364183,1745950279796,-400.0,0.00033525,2]
[359364184,1745950279805,-1053.59,0.00033525,2]
[359364185,1745950279815,-1239.71,0.00033525,2]
[359364186,1745950279824,-2205.18,0.00033525,2]
[359364187,1745950279835,-527.41,0.00033525,2]
[359364188,1745950279844,-2846.56,0.00033525,2]
[359364189,1745950279854,-2184.92,0.00033525,2]
[359364190,1745950279864,-817.29,0.00033525,2]
[359364191,1745950279874,-1394.02,0.00033525,2]
[359364192,1745950279883,-1320.77,0.00033525,2]
[359364193,1745950279893,-1675.48,0.00033525,2]
[359364194,1745950279903,-400.0,0.00033525,2]
[359364195,1745950279913,-1080.97,0.00033532,2]
[359364196,1745950279923,-402.94,0.00033532,2]
[359364197,1745950279932,-432.99,0.00033532,2]
[359364198,1745950279942,-418.93,0.00033532,2]
[359364199,1745950279951,-400.0,0.00033532,2]
[359364200,1745950279961,-400.0,0.00033532,2]
[359364201,1745950279971,-449.6,0.00033532,2]
[359364202,1745950279981,-400.0,0.00033532,2]
[359364203,1745950279990,-729.14,0.00033532,2]
[359364204,1745950280000,-400.0,0.00033532,2]
[359364205,1745950280010,-448.35,0.00033532,2]
[359364206,1745950280020,-400.0,0.00033532,2]
[359364207,1745950280029,-413.51,0.00033532,2]
[359364208,1745950280040,-1316.67,0.00033532,2]
[359364209,1745950280049,-658.51,0.00033532,2]
[359364210,1745950280059,-449.83,0.00033532,2]
[359364211,1745950280068,-413.91,0.00033556,2]
[359364212,1745950280078,-238.3734461,0.00033671,4]
[359364213,1745950280088,-400.0,0.00033765,2]
[359364214,1745950280098,-2129.67,0.00033765,2]
[359364215,1745950280107,-841.35,0.00033765,2]
[359364216,1745950280116,-597.93,0.00033765,2]
[359364217,1745950280126,-4477.77,0.00033765,2]
[359364218,1745950280136,-4481.88,0.00033765,2]
[359364219,1745950280146,-1016.27,0.00033765,2]
[359364220,1745950280155,-1557.18,0.00033765,2]
[359364221,1745950280164,-6821.26,0.00033765,2]
[359364222,1745950280173,-5218.28,0.00033765,2]
[359364223,1745950280183,-2301.75,0.00033765,2]
[359364224,1745950280192,-499.69,0.00033765,2]
[359364225,1745950280201,-2340.36,0.00033765,2]
[359364226,1745950280210,-4344.48,0.00033765,2]
[359364227,1745950280219,-735.44,0.00033785,2]
[359364228,1745950280230,-2027.24,0.00033785,2]
[359364229,1745950280239,-400.0,0.00033785,2]
[359364230,1745950280248,-448.72,0.00033785,2]
[359364231,1745950280257,-796.85,0.00033785,2]
[359364232,1745950280267,-753.17,0.00033785,2]
[359364233,1745950280276,-2644.55,0.00033785,2]
[359364234,1745950280284,-977.43,0.00033785,2]
[359364235,1745950280294,-400.0,0.00033785,2]
[359364236,1745950280303,-2032.37,0.00033785,2]
[359364237,1745950280312,-606.65,0.00033785,2]
[359364238,1745950280322,-2282.85,0.00033785,2]
[359364239,1745950280331,-502.89,0.00033785,2]
[359364240,1745950280340,-2537.29,0.00033785,2]
[359364241,1745950280350,-400.0,0.00033785,2]
[359364242,1745950280361,-400.0,0.00033785,2]
[359364243,1745950280370,-400.0,0.00033785,2]
[359364244,1745950280379,-665.54,0.00033785,2]
[359364245,1745950280388,-2388.42,0.00033785,2]
[359364246,1745950280397,-1859.74,0.00033785,2]
[359364247,1745950280407,-2718.43,0.00033785,2]
[359364248,1745950280416,-502.81,0.00033785,2]
[359364249,1745950280425,-400.0,0.00033797,2]
[359364250,1745950280434,-859.28,0.00033797,2]
[359364251,1745950280443,-510.13,0.00033797,2]
[359364252,1745950280453,-515.96,0.00033797,2]
[359364253,1745950280462,-783.69,0.00033797,2]
[359364254,1745950280471,-400.0,0.00033797,2]
[359364255,1745950280481,-836.06,0.00033797,2]
[359364256,1745950280494,-890.21,0.00033797,2]
[359364257,1745950280503,-448.01,0.00033797,2]
[359364258,1745950280512,-469.6,0.00033797,2]
[359364259,1745950280522,-855.39,0.00033797,2]
[359364260,1745950280532,-537.48,0.00033797,2]
[359364261,1745950280541,-423.88,0.00033797,2]
[359364262,1745950280551,-500.96,0.00033797,2]
[359364263,1745950280562,-510.86,0.00033797,2]
[359364264,1745950280572,-1044.99,0.00033797,2]
[359364265,1745950280582,-400.0,0.00033797,2]
[359364266,1745950280593,-863.9,0.00033797,2]
[359364267,1745950280603,-936.0,0.00033797,2]
[359364268,1745950280613,-489.11,0.00033797,2]
[359364269,1745950280623,-928.32,0.00033797,2]
[359364270,1745950280634,-426.15,0.00033797,2]
[359364271,1745950280643,-1599.63,0.00033797,2]
[359364272,1745950280653,-1739.64,0.00033797,2]
[359364273,1745950280662,-450.72,0.00033797,2]
[359364274,1745950280672,-669.77,0.00033797,2]
[359364275,1745950280682,-400.0,0.00033797,2]
[359364276,1745950280693,-172.02,0.00033797,2]
[359364277,1745950280702,-400.0,0.00033797,2]
[359364278,1745950280711,-400.0,0.00033797,2]
[359364279,1745950280721,-1012.25,0.00033797,2]
[359364280,1745950280730,-1114.07,0.00033797,2]
[359364281,1745950280739,-565.43,0.00033797,2]
[359364282,1745950280748,-792.61,0.00033797,2]
[359364283,1745950280758,-400.0,0.00033797,2]
[359364284,1745950280767,-618.32,0.00033797,2]
[359364285,1745950280776,-671.04,0.00033797,2]
[359364286,1745950280786,-400.0,0.00033797,2]
[359364287,1745950280795,-6629.8,0.00033797,2]
[359364288,1745950280804,-400.0,0.00033797,2]
[359364289,1745950280814,-2228.71,0.00033797,2]
[359364290,1745950280823,-839.34,0.00033797,2]
[359364291,1745950280832,-540.99,0.00033797,2]
[359364292,1745950280843,-624.9,0.00033797,2]
[359364293,1745950280852,-1259.11,0.00033797,2]
[359364294,1745950280862,-1654.28,0.00033797,2]
[359364295,1745950280871,-512.53,0.00033797,2]
[359364296,1745950280881,-2401.37,0.00033797,2]
[359364297,1745950280891,-400.0,0.00033797,2]
[359364298,1745950280901,-3513.44,0.00033797,2]
[359364299,1745950280911,-745.97,0.00033797,2]
[359364300,1745950280921,-1636.76,0.00033797,2]
[359364301,1745950280931,-401.59,0.00033797,2]
[359364302,1745950280940,-4763.75,0.00033797,2]
[359364303,1745950280949,-400.0,0.00033797,2]
[359364304,1745950280959,-811.55,0.00033797,2]
[359364305,1745950280968,-3915.94,0.00033797,2]
[359364306,1745950280978,-2053.69,0.00033797,2]
[359364307,1745950280987,-1013.28,0.00033797,2]
[359364308,1745950280997,-400.0,0.00033797,2]
[359364309,1745950281007,-2439.55,0.00033797,2]
[359364310,1745950281016,-499.68,0.00033797,2]
[359364311,1745950281025,-400.0,0.00033797,2]
[359364312,1745950281035,-1059.59,0.00033797,2]
[359364313,1745950281044,-9541.72,0.00033797,2]
[359364314,1745950281054,-400.0,0.00033797,2]
[359364315,1745950281063,-1166.59,0.00033797,2]
[359364316,1745950281073,-400.0,0.00033797,2]
[359364317,1745950281082,-449.90994298,0.00033797,2]
[359364318,1745950281092,-2079.05,0.00033797,2]
[359364319,1745950281101,-2602.27,0.00033797,2]
[359364320,1745950281111,-707.59,0.00033797,2]
[359364321,1745950281120,-400.0,0.00033797,2]
[359364322,1745950281129,-584.7,0.00033797,2]
[359364323,1745950281138,-785.1,0.00033797,2]
[359364324,1745950281148,-1689.93,0.00033797,2]
[359364325,1745950281157,-1489.78,0.00033797,2]
[359364326,1745950281167,-1238.14,0.00033797,2]
[359364327,1745950281176,-618.36,0.00033797,2]
[359364328,1745950281185,-400.0,0.00033797,2]
[359364329,1745950281194,-640.33,0.00033797,2]
[359364330,1745950281203,-1310.58,0.00033797,2]
[359364331,1745950281212,-400.0,0.00033797,2]
[359364332,1745950281221,-427.98068799,0.00033797,2]
[359364333,1745950281231,-586.04,0.00033797,2]
[359364334,1745950281240,-3604.88,0.00033798,2]
[359364335,1745950281249,-514.93,0.00033799,2]
[359364336,1745950281258,-627.52,0.00033799,2]
[359364337,1745950281267,-2104.16,0.00033799,2]
[359364338,1745950281276,-1287.35,0.00033799,2]
[359364339,1745950281285,-585.19,0.00033799,2]
[359364340,1745950281294,-590.39,0.00033799,2]
[359364341,1745950281303,-4064.61,0.00033799,2]
[359364342,1745950281312,-1120.73,0.00033799,2]
[359364343,1745950281321,-1942.02,0.00033799,2]
[359364344,1745950281330,-610.09,0.00033799,2]
[359364345,1745950281340,-480.18,0.00033799,2]
[359364346,1745950281350,-1089.09,0.00033799,2]
[359364347,1745950281359,-526.98,0.00033799,2]
[359364348,1745950281368,-1028.38,0.00033799,2]
[359364349,1745950281377,-400.0,0.00033799,2]
[359364350,1745950281387,-1520.91,0.00033799,2]
[359364351,1745950281396,-400.0,0.00033799,2]
[359364352,1745950281405,-1053.59,0.00033799,2]
[359364353,1745950281415,-1239.71,0.00033799,2]
[359364354,1745950281424,-2205.18,0.00033799,2]
[359364355,1745950281434,-527.41,0.00033799,2]
[359364356,1745950281443,-2846.56,0.00033799,2]
[359364357,1745950281452,-2184.92,0.00033799,2]
[359364358,1745950281461,-817.29,0.00033799,2]
[359364359,1745950281471,-1394.02,0.00033799,2]
[359364360,1745950281481,-1320.77,0.00033799,2]
[359364361,1745950281495,-1675.48,0.00033799,2]
[359364362,1745950281504,-400.0,0.00033799,2]
[359364363,1745950281513,-1080.97,0.00033806,2]
[359364364,1745950281522,-402.94,0.00033806,2]
[359364365,1745950281533,-432.99,0.00033806,2]
[359364366,1745950281542,-418.93,0.00033806,2]
[359364367,1745950281551,-400.0,0.00033806,2]
[359364368,1745950281561,-400.0,0.00033806,2]
[359364369,1745950281571,-449.6,0.00033806,2]
[359364370,1745950281581,-400.0,0.00033806,2]
[359364371,1745950281591,-729.14,0.00033806,2]
[359364372,1745950281600,-400.0,0.00033806,2]
[359364373,1745950281610,-448.35,0.00033806,2]
[359364374,1745950281619,-497.83894148,0.00033806,2]
[359364375,1745950281627,-413.51,0.00033806,2]
[359364376,1745950281637,-1316.67,0.00033806,2]
[359364377,1745950281646,-658.51,0.00033806,2]
[359364378,1745950281656,-449.83,0.00033806,2]
[359364379,1745950281665,-413.91,0.0003383,2]
[359364380,1745950281674,-200.8994039,0.00034,2]
[359364381,1745950281812,-400.0,0.00034039,2]
[359364382,1745950281822,-2129.67,0.00034039,2]
[359364383,1745950281833,-841.35,0.00034039,2]
[359364384,1745950281843,-597.93,0.00034039,2]
[359364385,1745950281852,-4477.77,0.00034039,2]
[359364386,1745950281862,-4481.88,0.00034039,2]
[359364387,1745950281872,-1016.27,0.00034039,2]
[359364388,1745950281881,-1557.18,0.00034039,2]
[359364389,1745950281890,-6821.26,0.00034039,2]
[359364390,1745950281901,-5218.28,0.00034039,2]
[359364391,1745950281912,-2301.75,0.00034039,2]
[359364392,1745950281922,-499.69,0.00034039,2]
[359364393,1745950281931,-2340.36,0.00034039,2]
[359364394,1745950281941,-735.44,0.00034059,2]
[359364395,1745950281951,-2027.24,0.00034059,2]
[359364396,1745950281962,-400.0,0.00034059,2]
[359364397,1745950281971,-448.72,0.00034059,2]
[359364398,1745950281980,-796.85,0.00034059,2]
[359364399,1745950281990,-753.17,0.00034059,2]
[359364400,1745950282000,-2644.55,0.00034059,2]
[359364401,1745950282010,-977.43,0.00034059,2]
[359364402,1745950282019,-400.0,0.00034059,2]
[359364403,1745950282029,-2032.37,0.00034059,2]
[359364404,1745950282039,-606.65,0.00034059,2]
[359364405,1745950282049,-2282.85,0.00034059,2]
[359364406,1745950282058,-2537.29,0.00034059,2]
[359364407,1745950282069,-502.89,0.00034059,2]
[359364408,1745950282079,-400.0,0.00034059,2]
[359364409,1745950282091,-400.0,0.00034059,2]
[359364410,1745950282101,-400.0,0.00034059,2]
[359364411,1745950282111,-665.54,0.00034059,2]
[359364412,1745950282121,-2388.42,0.00034059,2]
[359364413,1745950282131,-1859.74,0.00034059,2]
[359364414,1745950282140,-2718.43,0.00034059,2]
[359364415,1745950282149,-502.81,0.00034059,2]
[359364416,1745950282159,-750.0,0.0003406,5]
[359364417,1745950282168,-400.0,0.00034071,2]
[359364418,1745950282178,-859.28,0.00034071,2]
[359364419,1745950282188,-510.13,0.00034071,2]
[359364420,1745950282197,-515.96,0.00034071,2]
[359364421,1745950282207,-783.69,0.00034071,2]
[359364422,1745950282216,-400.0,0.00034071,2]
[359364423,1745950282225,-836.06,0.00034071,2]
[359364424,1745950282235,-890.21,0.00034071,2]
[359364425,1745950282244,-448.01,0.00034071,2]
[359364426,1745950282253,-469.6,0.00034071,2]
[359364427,1745950282263,-855.39,0.00034071,2]
[359364428,1745950282272,-537.48,0.00034071,2]
[359364429,1745950282281,-423.88,0.00034071,2]
[359364430,1745950282291,-500.96,0.00034071,2]
[359364431,1745950282300,-510.86,0.00034071,2]
[359364432,1745950282310,-1044.99,0.00034071,2]
[359364433,1745950282319,-400.0,0.00034071,2]
[359364434,1745950282328,-863.9,0.00034071,2]
[359364435,1745950282340,-936.0,0.00034071,2]
[359364436,1745950282349,-489.11,0.00034071,2]
[359364437,1745950282359,-928.32,0.00034071,2]
[359364438,1745950282368,-426.15,0.00034071,2]
[359364439,1745950282377,-1599.63,0.00034071,2]
[359364440,1745950282387,-1739.64,0.00034071,2]
[359364441,1745950282396,-450.72,0.00034071,2]
[359364442,1745950282406,-669.77,0.00034071,2]
[359364443,1745950282415,-400.0,0.00034071,2]
[359364444,1745950282425,-279.79474947,0.00034071,2]
[359364445,1745950282434,-262.69647972,0.00034071,2]
[359364446,1745950282444,-1012.25,0.00034071,2]
[359364447,1745950282453,-1114.07,0.00034071,2]
[359364448,1745950282463,-565.43,0.00034071,2]
[359364449,1745950282472,-792.61,0.00034071,2]
[359364450,1745950282483,-400.0,0.00034071,2]
[359364451,1745950282492,-618.32,0.00034071,2]
[359364452,1745950282502,-671.04,0.00034071,2]
[359364453,1745950282512,-400.0,0.00034071,2]
[359364454,1745950282522,-6629.8,0.00034071,2]
[359364455,1745950282531,-400.0,0.00034071,2]
[359364456,1745950282541,-2228.71,0.00034071,2]
[359364457,1745950282550,-839.34,0.00034071,2]
[359364458,1745950282559,-540.99,0.00034071,2]
[359364459,1745950282570,-624.9,0.00034071,2]
[359364460,1745950282579,-1259.11,0.00034071,2]
[359364461,1745950282592,-1654.28,0.00034071,2]
[359364462,1745950282601,-512.53,0.00034071,2]
[359364463,1745950282611,-2401.37,0.00034071,2]
[359364464,1745950282620,-400.0,0.00034071,2]
[359364465,1745950282630,-3513.44,0.00034071,2]
[359364466,1745950282640,-745.97,0.00034071,2]
[359364467,1745950282650,-1636.76,0.00034071,2]
[359364468,1745950282659,-401.59,0.00034071,2]
[359364469,1745950282669,-4763.75,0.00034071,2]
[359364470,1745950282678,-400.0,0.00034071,2]
[359364471,1745950282688,-811.55,0.00034071,2]
[359364472,1745950282697,-3915.94,0.00034071,2]
[359364473,1745950282707,-2053.69,0.00034071,2]
[359364474,1745950282716,-1013.28,0.00034071,2]
[359364475,1745950282725,-400.0,0.00034071,2]
[359364476,1745950282735,-2439.55,0.00034071,2]
[359364477,1745950282744,-499.68,0.00034071,2]
[359364478,1745950282754,-400.0,0.00034071,2]
[359364479,1745950282763,-1059.59,0.00034071,2]
[359364480,1745950282773,-9541.72,0.00034071,2]
[359364481,1745950282783,-400.0,0.00034071,2]
[359364482,1745950282793,-151.0,0.00034071,14]
[359364483,1745950282804,-1166.59,0.00034071,2]
[359364484,1745950282814,-400.0,0.00034071,2]
[359364485,1745950282824,-2079.05,0.00034071,2]
[359364486,1745950282833,-2602.27,0.00034071,2]
[359364487,1745950282846,-707.59,0.00034071,2]
[359364488,1745950282856,-400.0,0.00034071,2]
[359364489,1745950282865,-584.7,0.00034071,2]
[359364490,1745950282875,-785.1,0.00034071,2]
[359364491,1745950282885,-1689.93,0.00034071,2]
[359364492,1745950282894,-1489.78,0.00034071,2]
[359364493,1745950282904,-1238.14,0.00034071,2]
[359364494,1745950282915,-618.36,0.00034071,2]
[359364495,1745950282924,-400.0,0.00034071,2]
[359364496,1745950282934,-1310.58,0.00034071,2]
[359364497,1745950282943,-640.33,0.00034071,2]
[359364498,1745950282953,-400.0,0.00034071,2]
[359364499,1745950282962,-3604.88,0.00034072,2]
[359364500,1745950282972,-151.0,0.00034072,14]
[359364501,1745950282981,-151.0,0.00034072,14]
[359364502,1745950282990,-514.93,0.00034073,2]
[359364503,1745950283000,-627.52,0.00034073,2]
[359364504,1745950283010,-2104.16,0.00034073,2]
[359364505,1745950283019,-1287.35,0.00034073,2]
[359364506,1745950283030,-585.19,0.00034073,2]
[359364507,1745950283040,-590.39,0.00034073,2]
[359364508,1745950283051,-4064.61,0.00034073,2]
[359364509,1745950283062,-1120.73,0.00034073,2]